[Event "Reykjavik Open 2024"]
[Site "Reykjavik"]
[Date "2024.03.18"]
[Round "5.37"]
[White "Briem, Benedikt"]
[Black "Prraneeth Vuppala"]
[Result "0-1"]
[ECO "E16"]
[WhiteElo "2102"]
[BlackElo "2506"]
[Annotator "TA"]
[PlyCount "102"]
[EventDate "2024.03.12"]
[EventCountry "ISL"]
[SourceTitle "playchess.com"]
[Source "ChessBase"]
[SourceQuality "1"]
[TimeControl "40/5400+30:1800+30"]

{[%evp 17,102,18,9,14,15,0,8,0,6,6,20,1,18,0,35,28,39,-31,-27,-22,-35,-44,-42,-59,-46,-46,-43,-65,-73,-53,-62,-66,-76,-55,-29,-32,-23,-71,-74,-110,-104,-104,-99,-125,-118,-208,-212,-291,-274,-295,-293,-298,-302,-305,-298,-348,-334,-345,-303,-341,-341,-367,-369,-509,-509,-495,-490,-502,-502,-501,-497,-508,-508,-596,-600,-722,-697,-677,-500,-527,-548,-598,-590,-562,-490,-679,-668]} 1. d4 {[%emt 0:14:26]} Nf6 {[%emt 0:00:14]} 2. c4 {[%emt 0:01:58]} e6 {[%emt 0:00:05]} 3. g3 {[%emt 0:00:24]} d5 {[%emt 0:00:24]} 4. Bg2 {[%emt 0:00:31]} Bb4+ {[%emt 0:00:10]} 5. Nd2 {[%emt 0:00:11]} O-O {[%emt 0:00:53]} 6. Ngf3 {[%emt 0:00:06]} b6 {[%emt 0:00:38]} 7. O-O {[%emt 0:00:07]} Bb7 {[%emt 0:00:03]} 8. a3 {[%emt 0:00:06]} Be7 {[%emt 0:00:11]} 9. cxd5 {[%emt 0:00:16]} exd5 {[%emt 0:00:32]} 10. b4 {[%emt 0:00:08]} Re8 {[%emt 0:00:35]} 11. Ne5 {[%emt 0:01:17]} Nbd7 {[%emt 0:00:47]} 12. Ndf3 {[%emt 0:02:07] Die Stellung ist ausgeglichen.} Bd6 {[%emt 0:01:02]} 13. Bb2 {[%emt 0:03:34]} b5 {[%emt 0:01:19]} 14. Qc2 {[%emt 0:23:40]} Nb6 {[%emt 0:07:38]} 15. Nd2 {[%emt 0:05:43]} (15. Ng5 {wäre vielleicht verwirrender.} Re7 16. f3 Nc4 17. Ng4) 15... Nfd7 {[%emt 0:17:29][%cal Rd7e5]} 16. Nxd7 {[%emt 0:05:12]} Qxd7 {[%emt 0:03:33]} 17. e4 {[%emt 0:04:15]} (17. Nb3 $14) 17... dxe4 $15 {[%emt 0:02:20]} 18. Nxe4 {[%emt 0:00:42] Ng5 wäre nun fies.} Bd5 {[%emt 0:00:31]} 19. Rac1 {[%emt 0:11:44]} c6 {[%emt 0:07:27]} 20. Ng5 {[%emt 0:02:22]} f5 {[%emt 0:02:34]} 21. Bxd5+ {[%emt 0:01:02]} cxd5 {[%emt 0:00:15]} 22. Qc6 {[%emt 0:01:52]} Qxc6 {[%emt 0:06:17]} 23. Rxc6 {[%emt 0:00:03]} Nc4 {[%emt 0:00:04]} 24. Bc1 {[%emt 0:02:33]} a5 {[%emt 0:15:18]} 25. bxa5 {[%emt 0:05:27]} Rec8 {[%emt 0:02:18]} 26. Rxc8+ {[%emt 0:01:59]} Rxc8 {[%emt 0:00:01]} 27. Bf4 {[%emt 0:00:55]} (27. Kg2 $11 {ist überlegen.}) 27... Bxa3 $17 {[%emt 0:01:52] Schwarz steht aktiver. Schwarz hat alles unter Kontrolle.} 28. a6 {[%emt 0:06:01]} Ra8 {[%emt 0:06:01]} 29. Ne6 {[%emt 0:01:02]} (29. Rb1 b4 (29... Rxa6 30. Rxb5 h6 31. Nf3 $11) 30. Ne6 Rxa6) 29... Rxa6 {[%emt 0:00:26]} 30. Nc7 {[%emt 0:00:24][%csl LRa6,LRb5,LRd5]} Ra5 {[%emt 0:00:22] Und jetzt ...b4 wäre schön.} 31. Nxd5 {[%emt 0:04:29]} (31. Re1 $17) 31... b4 $19 {[%emt 0:00:06]} 32. Nxb4 {[%emt 0:01:22]} Bxb4 {[%emt 0:00:27]} 33. Rc1 {[%emt 0:00:02]} Nb6 {[%emt 0:02:50]} 34. Rc6 {[%emt 0:00:49]} Nd7 {[%emt 0:01:37]} 35. Rc4 {[%emt 0:00:32]} Be7 {[%emt 0:00:02]} 36. h4 {[%emt 0:00:28]} Kf7 {[%emt 0:00:12]} 37. Kg2 {[%emt 0:00:26]} Rd5 {[%emt 0:00:27]} 38. Kf3 {[%emt 0:00:12]} Bf6 {[%emt 0:00:18]} 39. Ke3 {[%emt 0:00:15]} Nb6 {[%emt 0:00:36]} 40. Rb4 {[%emt 0:00:44] [#]} Rd7 $1 {[%emt 0:00:11] Droht stark ...Nd5+. Schwarz steht klar auf Gewinn.} 41. Kf3 {[%emt 0:00:55]} (41. Rb5 Nd5+) 41... Nd5 {[%emt 0:30:22]} ({Schlechter ist} 41... Rxd4 42. Rxb6 Rc4 43. Be3 $11) ({Finger weg von} 41... Bxd4 42. Kg2 $19) 42. Rb5 {[%emt 0:01:08]} Nxf4 {[%emt 0:00:00]} 43. Kxf4 {[%emt 0:00:06]} Rxd4+ {[%emt 0:00:00][%mdl 4096] Endspiel. KRB-KR} 44. Kf3 {[%emt 0:00:18]} Ke6 {[%emt 0:00:00]} 45. Rb6+ {[%emt 0:00:18]} Rd6 {[%emt 0:00:00]} 46. Rb7 {[%emt 0:00:09]} Rd2 {[%emt 0:00:00] ...Bd4 ist eine echte Drohung.} 47. Rb6+ {[%emt 0:00:06]} Kf7 {[%emt 0:00:00]} 48. Rb7+ {[%emt 0:00:10]} Kg6 {[%emt 0:00:00] Droht ...Bd4 und aus.} 49. Ke3 {[%emt 0:00:05]} Rb2 {[%emt 0:00:00]} 50. Rd7 {[%emt 0:00:15]} Rb3+ {[%emt 0:00:00]} 51. Ke2 {[%emt 0:00:09] [#]} f4 $1 {[%emt 0:00:00] Gewichteter Fehlerwert: Weiß=0.27 (präzise) /Schwarz=0.10 (sehr präzise) .  Fehler:       	Weiß=3     	---        Ungenau:       	Weiß=4     	Schwarz=2     OK:         	Weiß=8     	Schwarz=21    Bester:       	---       	Schwarz=5} 0-1

[Event "Reykjavik Open 2024"]
[Site "Reykjavik"]
[Date "2024.03.18"]
[Round "5.39"]
[White "Loncke, Matthieu"]
[Black "Botez, Andrea"]
[Result "1-0"]
[ECO "E61"]
[WhiteElo "2175"]
[BlackElo "1825"]
[Annotator "RC"]
[PlyCount "81"]
[EventDate "2024.03.12"]
[EventCountry "ISL"]
[SourceTitle "playchess.com"]
[Source "ChessBase"]
[SourceQuality "1"]
[TimeControl "40/5400+30:1800+30"]

1. d4 {[%emt 0:00:07]} Nf6 {[%emt 0:00:05]} 2. c4 {[%emt 0:00:18]} g6 {[%emt 0:00:06]} 3. Nc3 {[%emt 0:00:19]} Bg7 {[%emt 0:00:09]} 4. Nf3 {[%emt 0:00:49]} d6 {[%emt 0:00:19]} 5. Bg5 {[%emt 0:00:52]} h6 {[%emt 0:04:57]} 6. Bh4 {[%emt 0:00:15]} O-O {[%emt 0:00:30]} 7. e3 {[%emt 0:00:48]} c5 {[%emt 0:04:12]} 8. d5 {[%emt 0:03:09]} Qb6 {[%emt 0:08:59]} 9. Qc1 {[%emt 0:06:25]} g5 {[%emt 0:02:18]} 10. Bg3 {[%emt 0:00:15]} Bf5 {[%emt 0:00:30]} 11. Nd2 {[%emt 0:01:26]} Nh5 {[%emt 0:04:26]} 12. Be2 {[%emt 0:03:58]} Nxg3 {[%emt 0:00:15]} 13. hxg3 {[%emt 0:00:22]} Nd7 {[%emt 0:01:06]} 14. f4 {[%emt 0:07:11]} Nf6 {[%emt 0:03:40]} 15. O-O {[%emt 0:03:07]} e6 {[%emt 0:19:56]} 16. a4 {[%emt 0:08:46]} Rae8 {[%emt 0:07:47]} 17. Ra3 {[%emt 0:06:31]} a6 {[%emt 0:15:19]} 18. Rb3 {[%emt 0:06:08]} Qc7 {[%emt 0:01:07]} 19. Bf3 {[%emt 0:29:37]} Bd3 {[%emt 0:04:21]} 20. Re1 {[%emt 0:00:56]} g4 {[%emt 0:15:06]} 21. Bd1 {[%emt 0:01:14]} Bxc4 {[%emt 0:03:17]} 22. Nxc4 {[%emt 0:01:42]} exd5 {[%emt 0:00:13]} 23. Nb6 {[%emt 0:08:13]} d4 {[%emt 0:00:36]} 24. Ncd5 {[%emt 0:01:10]} Qc6 {[%emt 0:02:08]} 25. Nxf6+ {[%emt 0:00:43]} Bxf6 {[%emt 0:00:02]} 26. Bxg4 {[%emt 0:00:16]} dxe3 {[%emt 0:00:15]} 27. Bd7 {[%emt 0:01:22]} Qe4 {[%emt 0:01:27]} 28. Bxe8 {[%emt 0:00:33]} Qxe8 {[%emt 0:00:25]} 29. Nd5 {[%emt 0:01:45]} Bd4 {[%emt 0:00:05]} 30. Nxe3 {[%emt 0:00:53]} Qxa4 {[%emt 0:00:31]} 31. Rd3 {[%emt 0:01:11]} Re8 {[%emt 0:00:25]} 32. Kh2 {[%emt 0:00:53]} Qb5 {[%emt 0:00:57]} 33. Qd2 {[%emt 0:01:40]} Qxb2 {[%emt 0:00:52]} 34. Nc4 {[%emt 0:00:50]} Qb5 {[%emt 0:00:30]} 35. Nxd6 {[%emt 0:00:20]} Rxe1 {[%emt 0:00:31]} 36. Nxb5 {[%emt 0:00:07]} Bg1+ {[%emt 0:00:23]} 37. Kh3 {[%emt 0:00:06]} Rb1 {[%emt 0:00:39]} 38. Rd8+ {[%emt 0:00:11]} Kg7 {[%emt 0:00:08]} 39. Qc3+ {[%emt 0:00:31]} Bd4 {[%emt 0:00:41]} 40. Nxd4 {[%emt 0:00:13]} h5 {[%emt 0:00:41]} 41. Nf3+ {[%emt 0:30:08]} 1-0

[Event "Reykjavik Open 2024"]
[Site "Reykjavik"]
[Date "2024.03.18"]
[Round "5.40"]
[White "Saine, Zachary"]
[Black "Mendes Aaron Reeve"]
[Result "1-0"]
[ECO "B90"]
[WhiteElo "2010"]
[BlackElo "2309"]
[Annotator "TA"]
[PlyCount "151"]
[EventDate "2024.03.12"]
[EventCountry "ISL"]
[SourceTitle "playchess.com"]
[Source "ChessBase"]
[SourceQuality "1"]
[TimeControl "40/5400+30:1800+30"]

{[%evp 31,150,50,152,143,156,167,225,148,163,153,182,175,143,71,82,72,102,95,219,129,135,142,136,102,112,108,168,178,269,267,331,317,329,323,404,404,379,383,557,320,728,695,780,740,2348,710,711,711,700,582,722,396,389,389,403,406,403,399,406,406,399,399,399,377,369,272,518,450,746,746,746,746,740,727,713,716,1607,704,29949,29944,12794,12768,5733,5427,29975,29977,29976,29977,29982,29980,29979,29980,29984,29985,29985,29986,29986,29987,29987,29988,29988,29989,29989,29990,29990,29991,29992,29993,29993,29994,29994,29995,29995,29996,29996,29997,29997,29997,29998,29999,29999]} 1. e4 {[%emt 0:00:10]} c5 {[%emt 0:01:16]} 2. Nf3 {[%emt 0:00:12]} d6 {[%emt 0:00:10]} 3. d4 {[%emt 0:00:05]} cxd4 {[%emt 0:00:06]} 4. Nxd4 {[%emt 0:00:04]} Nf6 {[%emt 0:00:14]} 5. Nc3 {[%emt 0:00:07]} a6 {[%emt 0:00:09]} 6. f3 {[%emt 0:00:10]} e5 {[%emt 0:00:35]} 7. Nb3 {[%emt 0:00:05]} Be6 {[%emt 0:00:21]} 8. Be3 {[%emt 0:00:05]} Be7 {[%emt 0:00:07]} 9. Qd2 {[%emt 0:00:05]} h5 {[%emt 0:00:22]} 10. Be2 {[%emt 0:00:05]} Nbd7 {[%emt 0:00:31] B90: Sizilianisch (Najdorf-Variante, Abweichungen).} 11. Nd5 {[%emt 0:00:07]} Nxd5 {[%emt 0:01:40] 11...Bxd5 verdient Beachtung.} 12. exd5 {[%emt 0:00:05]} Bf5 {[%emt 0:00:40]} 13. O-O {[%emt 0:00:24]} O-O {[%emt 0:01:36]} 14. Na5 {[%emt 0:00:21]} Qc7 {[%emt 0:02:03]} 15. c4 {[%emt 0:00:05]} h4 {[%emt 0:03:27]} 16. b4 {[%emt 0:02:05]} Nb8 $146 {[%emt 0:04:27]} (16... Rfe8 $14) ({Predecessor:} 16... h3 17. g3 Rac8 18. Rac1 Qb8 19. Rfd1 Bd8 20. Nb3 b6 21. c5 dxc5 22. Bxa6 Rc7 23. bxc5 Nxc5 24. Nxc5 bxc5 {1-0 Andersen,M (2604)-Kovacevic,A (2471) Bundesliga 2223 2022 (1.5)}) 17. c5 $1 $16 {[%emt 0:13:33]} dxc5 {[%emt 0:02:41] [#]} 18. Nc4 $1 {[%emt 0:01:50]} Bf6 {[%emt 0:14:21]} (18... Rd8 $142) 19. Bxc5 {[%emt 0:07:36]} Nd7 {[%emt 0:00:25]} 20. Bxf8 {[%emt 0:01:13]} Rxf8 {[%emt 0:00:12]} 21. Rac1 {[%emt 0:02:32]} Qd8 {[%emt 0:01:47]} 22. Bd3 {[%emt 0:12:46]} ({Günstiger ist} 22. Ne3 Bg6 23. Bd3) 22... Bg5 $16 {[%emt 0:08:44]} 23. Ne3 {[%emt 0:01:30]} Bxd3 {[%emt 0:09:24]} 24. Qxd3 {[%emt 0:00:08]} e4 {[%emt 0:00:44]} (24... Qb6 $16 25. Rfe1 h3) 25. Qd4 {[%emt 0:06:07]} (25. Qxe4 $2 Re8 26. Qg4 Bxe3+ 27. Kh1 Ne5 $19 (27... Bxc1 $2 28. Rxc1 Ne5 29. Qd4 $19) (27... Nf6 $2 28. Qxh4 Bxc1 29. Rxc1 $19)) ({Besser ist} 25. fxe4 $18 {Schwarz muss nun Kh1 beachten.} Ne5 26. Qd4) 25... exf3 $16 {[%emt 0:01:28]} 26. Rxf3 {[%emt 0:01:24]} Re8 {[%emt 0:00:26]} 27. Rcf1 {[%emt 0:16:24]} Ne5 {[%emt 0:00:31] [#]} 28. Rh3 $1 {[%emt 0:00:16]} g6 {[%emt 0:07:28]} (28... Nc6 $16 29. Qc5 (29. dxc6 $2 Qxd4 30. Kh1 Bxe3 $19) 29... Nxb4) 29. Nc4 $18 {[%emt 0:04:26]} Nc6 {[%emt 0:06:13]} (29... Nxc4 {war angesagt.} 30. Qxc4 Qd6) 30. Qc5 $18 {[%emt 0:03:25]} (30. dxc6 $2 Qxd4+ 31. Kh1 Qxc4 $19) 30... Bf6 {[%emt 0:10:25]} 31. Qd6 {[%emt 0:09:01]} (31. dxc6 $2 Bd4+ 32. Ne3 Bxc5 33. bxc5 bxc6 $19) 31... Bd4+ {[%emt 0:06:22]} 32. Kh1 {[%emt 0:00:04]} Ne7 {[%emt 0:01:13]} 33. Rxh4 {[%emt 0:02:32]} Bg7 {[%emt 0:01:28]} 34. Re4 {[%emt 0:04:57]} Bf8 {[%emt 0:03:44]} (34... b5 {war nötig.} 35. Qxd8 Rxd8 36. Rxe7 bxc4) 35. Rfe1 {[%emt 0:02:26]} b5 $2 {[%emt 0:01:25]} (35... Qxd6 36. Nxd6 Rd8 37. Nxb7 Rxd5) 36. Qc5 $18 {[%emt 0:06:07]} Qb8 {[%emt 0:05:45]} 37. d6 {[%emt 0:04:30]} (37. Rxe7 Bxe7 38. Rxe7 Rxe7 39. Qxe7 bxc4 $11) 37... Rc8 {[%emt 0:01:16]} 38. Qb6 {[%emt 0:00:34]} (38. dxe7 $142 Bxe7 39. Rxe7 Rxc5 40. bxc5 (40. Re8+ Kg7 $18)) 38... Nd5 $18 {[%emt 0:02:34]} 39. Qxb8 {[%emt 0:01:00]} ({Nicht} 39. Qxa6 Nxb4 40. Qb6 bxc4 41. Qxb8 (41. d7 Qxb6 42. dxc8=Q Nd3 $16) 41... Rxb8 $16) 39... Rxb8 {[%emt 0:00:02]} 40. d7 {[%emt 0:00:52]} Nf6 {[%emt 0:00:22]} 41. Re8 {[%emt 0:30:45]} Nxd7 {[%emt 0:30:16]} 42. Rxb8 {[%emt 0:00:30]} Nxb8 {[%emt 0:00:12]} 43. Re8 {[%emt 0:00:00]} Nc6 {[%emt 0:00:00]} 44. Ne5 {[%emt 0:00:00]} Nxe5 {[%emt 0:00:00]} 45. Rxe5 {[%emt 0:00:00]} Bxb4 {[%emt 0:00:00]} 46. Re8+ {[%emt 0:00:00]} Kg7 {[%emt 0:00:00]} 47. Ra8 {[%emt 0:00:00]} a5 {[%emt 0:00:00]} 48. Rb8 {[%emt 0:00:00]} f5 $2 {[%emt 0:00:00]} (48... Kf6 49. Rxb5 Ke7) 49. g3 {[%emt 0:00:00]} Kh6 {[%emt 0:00:00]} (49... Bf8 $142 50. Rxb5 Bb4) 50. Rxb5 $18 {[%emt 0:00:00]} Kg5 {[%emt 0:00:00]} 51. Kg2 {[%emt 0:00:00]} Bc3 {[%emt 0:00:00]} 52. a4 {[%emt 0:00:00]} Kh5 {[%emt 0:00:00]} 53. Kf3 {[%emt 0:00:00]} Kg5 {[%emt 0:00:00]} 54. h3 {[%emt 0:00:00]} (54. g4 $142 Bb4 55. gxf5) 54... Kh5 {[%emt 0:00:00]} 55. g4+ {[%emt 0:00:00]} Kg5 {[%emt 0:00:00]} 56. h4+ {[%emt 0:00:00]} Kxh4 {[%emt 0:00:00]} 57. gxf5 {[%emt 0:00:00]} g5 {[%emt 0:00:00]} 58. f6 {[%emt 0:00:00]} Bxf6 {[%emt 0:00:00]} 59. Rxa5 {[%emt 0:00:00]} Kh3 {[%emt 0:00:00]} 60. Ra6 {[%emt 0:00:00]} g4+ {[%emt 0:00:00]} 61. Kf4 {[%emt 0:00:00]} Bh4 {[%emt 0:00:00]} 62. Rh6 {[%emt 0:00:00]} g3 {[%emt 0:00:00]} 63. Kf3 {[%emt 0:00:00]} g2 {[%emt 0:00:00]} 64. Rxh4+ {[%emt 0:00:00]} Kxh4 {[%emt 0:00:00]} 65. Kxg2 {[%emt 0:00:00]} Kg4 {[%emt 0:00:00]} 66. a5 {[%emt 0:00:00]} Kf5 {[%emt 0:00:00]} 67. a6 {[%emt 0:00:00]} Ke4 {[%emt 0:00:00]} 68. a7 {[%emt 0:00:00]} Kd3 {[%emt 0:00:00]} 69. a8=Q {[%emt 0:00:00]} ({Schlechter ist} 69. a8=B Ke3 $11) 69... Kc2 {[%emt 0:00:00]} 70. Qf3 {[%emt 0:00:00]} Kb1 {[%emt 0:00:00]} 71. Qe2 {[%emt 0:00:00]} Ka1 {[%emt 0:00:00]} 72. Kf3 {[%emt 0:00:00]} Kb1 {[%emt 0:00:00]} 73. Ke3 {[%emt 0:00:00]} Ka1 {[%emt 0:00:00]} 74. Kd3 {[%emt 0:00:00]} Kb1 {[%emt 0:00:00]} 75. Kc3 {[%emt 0:00:00]} Kc1 {[%emt 0:00:00]} 76. Qf1# {[%emt 0:00:00]} 1-0

[Event "Reykjavik Open 2024"]
[Site "Reykjavik"]
[Date "2024.03.18"]
[Round "5.41"]
[White "Reimer, Philip"]
[Black "Zhu, Jiner"]
[Result "0-1"]
[ECO "B61"]
[WhiteElo "2095"]
[BlackElo "2467"]
[Annotator "TA"]
[PlyCount "76"]
[EventDate "2024.03.12"]
[EventCountry "ISL"]
[SourceTitle "playchess.com"]
[Source "ChessBase"]
[SourceQuality "1"]
[TimeControl "40/5400+30:1800+30"]

{[%evp 21,76,61,62,23,34,27,12,-14,0,-15,-15,-19,-12,-18,-18,-65,-70,-59,-45,-48,-51,-51,-43,-42,-47,-99,-94,-93,-83,-182,-164,-186,-189,-179,-185,-382,-364,-570,-560,-565,-509,-726,-726,-731,-719,-980,-980,-972,-815,-968,-952,-972,-913,-29968,-29970,-29976,-29978]} 1. e4 {[%emt 0:00:13]} c5 {[%emt 0:00:08]} 2. Nf3 {[%emt 0:00:08]} d6 {[%emt 0:00:06]} 3. d4 {[%emt 0:00:07]} cxd4 {[%emt 0:00:05]} 4. Nxd4 {[%emt 0:00:05]} Nf6 {[%emt 0:00:08]} 5. Nc3 {[%emt 0:00:06]} Nc6 {[%emt 0:00:09]} 6. Bg5 {[%emt 0:00:07]} Bd7 {[%emt 0:00:05]} 7. Qd2 {[%emt 0:00:09]} Rc8 {[%emt 0:00:28]} 8. O-O-O {[%emt 0:00:10]} Nxd4 {[%emt 0:00:05]} 9. Qxd4 {[%emt 0:00:05]} Qa5 {[%emt 0:00:06]} 10. f4 {[%emt 0:00:08]} h6 {[%emt 0:00:08][%cal Bh7h6,Bh6h5,Bh5h4][%mdl 32]} 11. Bxf6 {[%emt 0:01:38]} gxf6 {[%emt 0:00:06]} 12. f5 {[%emt 0:11:09]} h5 {[%emt 0:07:01]} 13. Kb1 {[%emt 0:01:24]} Qc5 {[%emt 0:01:11]} 14. g3 {[%emt 0:20:13] Die Stellung ist ausgeglichen.} h4 {[%emt 0:03:21]} 15. g4 {[%emt 0:03:48]} Bh6 {[%emt 0:00:50][%cal Bf8h6,Bh6g5,Bg5f4,Bf4e5][%mdl 32]} 16. Qxc5 {[%emt 0:04:48]} Rxc5 {[%emt 0:00:08]} 17. Nd5 {[%emt 0:00:23]} Bg5 {[%emt 0:00:25]} 18. c4 {[%emt 0:15:17]} (18. Nc3 $11 {scheint genauer.}) 18... e6 $15 {[%emt 0:17:57]} 19. Nc3 {[%emt 0:03:45]} Ke7 {[%emt 0:01:13]} 20. h3 {[%emt 0:01:22]} Bf4 {[%emt 0:01:46]} 21. Bd3 {[%emt 0:02:31]} Rhc8 {[%emt 0:01:21]} 22. Rhf1 {[%emt 0:11:44]} Be5 {[%emt 0:00:25]} 23. Ne2 {[%emt 0:00:10]} (23. Rc1 $15) 23... b5 {[%emt 0:06:15] Schwarz steht aktiver.} 24. cxb5 {[%emt 0:01:39]} Bxb5 {[%emt 0:00:07]} 25. Bxb5 {[%emt 0:00:11]} (25. Ng1 $17) 25... Rxb5 $19 {[%emt 0:00:07]} 26. b3 {[%emt 0:00:48]} Rb4 {[%emt 0:00:11]} 27. Rc1 {[%emt 0:01:00]} Rxc1+ {[%emt 0:00:10]} 28. Rxc1 $2 {[%emt 0:01:53] [#]} (28. Kxc1 {war die einzige Chance.} Rxe4 29. Kd2) 28... Rxe4 {[%emt 0:00:07][%mdl 4096] Endspiel. KRB-KRN} 29. Nc3 {[%emt 0:00:44]} (29. Ng1 $142) 29... Re3 {[%emt 0:01:11][%csl LRc3,LRh3]} 30. Nb5 {[%emt 0:02:00]} a6 {[%emt 0:00:12]} 31. Na3 {[%emt 0:00:54]} Rxh3 {[%emt 0:00:19]} 32. Rc7+ {[%emt 0:00:12]} Kd8 {[%emt 0:01:10]} 33. Rxf7 {[%emt 0:00:20]} exf5 {[%emt 0:00:14]} 34. gxf5 {[%emt 0:00:15]} Rh1+ {[%emt 0:00:07]} 35. Kc2 {[%emt 0:00:06]} h3 {[%emt 0:00:10]} 36. Nc4 {[%emt 0:00:23]} h2 {[%emt 0:00:13][%cal Oh1c1] [#] Droht ...Rc1+! und aus.} 37. Nxe5 {[%emt 0:00:12]} dxe5 {[%emt 0:00:09]} 38. Rh7 {[%emt 0:00:19]} Ra1 {[%emt 0:00:06] Weiß wurde aus der Eröffnung heraus überfahren.   Gewichteter Fehlerwert: Weiß=0.69/Schwarz=0.04 (makellos) .  Fehler:       	Weiß=5     	---        Ungenau:       	Weiß=2     	---        OK:         	Weiß=6     	Schwarz=8     Bester:       	---       	Schwarz=3} 0-1

[Event "Reykjavik Open 2024"]
[Site "Reykjavik"]
[Date "2024.03.18"]
[Round "5.42"]
[White "Megarbane, Julien"]
[Black "Prado, Alexandra"]
[Result "0-1"]
[ECO "E71"]
[WhiteElo "1632"]
[BlackElo "1877"]
[Annotator "NA RC"]
[PlyCount "94"]
[EventDate "2024.03.12"]
[EventCountry "ISL"]
[SourceTitle "playchess.com"]
[Source "ChessBase"]
[SourceQuality "1"]
[TimeControl "40/5400+30:1800+30"]

1. d4 {[%emt 0:00:47]} Nf6 {[%emt 0:03:34]} 2. c4 {[%emt 0:00:13]} g6 {[%emt 0:00:10]} 3. Nc3 {[%emt 0:00:07]} Bg7 {[%emt 0:00:12]} 4. e4 {[%emt 0:00:10]} d6 {[%emt 0:00:07]} 5. h3 {[%emt 0:00:08]} O-O {[%emt 0:01:59]} 6. Be3 {[%emt 0:00:10]} Nc6 {[%emt 0:01:44] E71: King's Indian: 4 e4 d6 5 h3.} 7. d5 {[%emt 0:00:16]} Nb8 {[%emt 0:01:23]} 8. Be2 {[%emt 0:03:42]} e6 {[%emt 0:03:45]} 9. Nf3 {[%emt 0:04:18]} Re8 {[%emt 0:01:52]} 10. Nd2 {[%emt 0:08:53]} exd5 {[%emt 0:02:08]} 11. cxd5 {[%emt 0:00:52]} c5 {[%emt 0:00:55]} 12. g4 {[%emt 0:07:08]} a6 {[%emt 0:03:06]} 13. a4 {[%emt 0:01:20]} Qa5 {[%emt 0:05:50]} 14. Bf4 {[%emt 0:31:29]} Nxe4 {[%emt 0:06:06]} 15. Ndxe4 {[%emt 0:07:25]} Rxe4 {[%emt 0:00:14]} 16. Bd2 {[%emt 0:00:14]} Re8 {[%emt 0:11:08]} 17. O-O {[%emt 0:03:58]} Qd8 {[%emt 0:02:34]} 18. Bf3 {[%emt 0:02:57]} Nd7 {[%emt 0:04:34]} 19. Bg2 {[%emt 0:03:53]} Rb8 {[%emt 0:03:37]} 20. Qc2 {[%emt 0:05:45]} Ne5 {[%emt 0:08:34]} 21. Rfe1 {[%emt 0:03:12]} b5 {[%emt 0:04:51]} 22. axb5 {[%emt 0:00:17]} axb5 {[%emt 0:00:40]} 23. Bf4 {[%emt 0:02:52]} c4 {[%emt 0:08:16]} 24. Bg3 {[%emt 0:03:01]} Bd7 {[%emt 0:09:26]} 25. Ra6 {[%emt 0:04:41]} Nf3+ {[%emt 0:02:43]} 26. Bxf3 {[%emt 0:00:24]} Rxe1+ {[%emt 0:00:02]} 27. Kg2 {[%emt 0:00:02]} Rb6 {[%emt 0:04:04]} 28. Rxb6 {[%emt 0:01:08]} Qxb6 {[%emt 0:00:02]} 29. Ne4 {[%emt 0:01:55]} Be5 {[%emt 0:00:46]} 30. Bxe5 {[%emt 0:00:38]} dxe5 {[%emt 0:00:27]} 31. Qc3 {[%emt 0:00:40]} Rxe4 {[%emt 0:03:04]} 32. Bxe4 {[%emt 0:00:11]} Qd4 {[%emt 0:00:08]} 33. f3 {[%emt 0:01:15]} f5 {[%emt 0:00:37]} 34. gxf5 {[%emt 0:01:40]} gxf5 {[%emt 0:00:19]} 35. Qxd4 {[%emt 0:01:10]} exd4 {[%emt 0:00:16]} 36. Bc2 {[%emt 0:00:16]} b4 {[%emt 0:04:24]} 37. Kf2 {[%emt 0:00:36]} Kf7 {[%emt 0:01:19]} 38. f4 {[%emt 0:00:28]} Ke7 {[%emt 0:00:20]} 39. Ke1 {[%emt 0:00:37]} Kd6 {[%emt 0:00:09]} 40. b3 {[%emt 0:00:19]} Kxd5 {[%emt 0:01:15]} 41. bxc4+ {[%emt 0:30:24]} Kxc4 {[%emt 0:30:23]} 42. Kd2 {[%emt 0:00:17]} b3 {[%emt 0:01:43]} 43. Bd3+ {[%emt 0:00:51]} Kb4 {[%emt 0:00:00]} 44. Bb1 {[%emt 0:00:00]} Ka3 {[%emt 0:00:00]} 45. Kc1 {[%emt 0:00:00]} Be6 {[%emt 0:00:00]} 46. h4 {[%emt 0:00:00]} h6 {[%emt 0:00:00]} 47. h5 {[%emt 0:00:00]} Bd7 {[%emt 0:00:00]} 0-1